Cogmind - Beta 15 @@@ ROGUE MODE // 2025.08.05 @ 03:10:02 Player: shapeshifter Result: Destroyed by S-27 Virus with Autogun Performance ------------- Evolutions (4) 2000 Regions Visited (9) 1800 Robots Destroyed (0) 0 Value Destroyed (0) 0 Prototype IDs (3) 60 Alien Tech Used (0) 0 Bonus (1625) 1625 TOTAL SCORE: 5485 Bonus ------- Pacifist 1125 Entered DSFs 500 Cogmind --------- Core Integrity 0/850 Matter 239/300 Energy 100/100 System Corruption 0% Temperature Cool (0) Movement Core (50) Location -6/Factory Parts ------- > --- POWER (2) -------- (None) > --- PROPULSION (6) --- (None) > --- UTILITY (5) ------ (None) > --- WEAPON (2) ------- (None) > --- INVENTORY (5) ---- Experimental Sensor Array Medium Reactive Plating Splice Drone Bay (4/6) Enhanced Autogun Enhanced Autogun Peak State ------------ > --- POWER ------------ Light Ion Engine > --- PROPULSION ------- Improved Carbon-fiber Leg Improved Carbon-fiber Leg Improved Carbon-fiber Leg Improved Carbon-fiber Leg Improved Carbon-fiber Leg > --- UTILITY ---------- Medium Reactive Plating Medium Reactive Plating Medium Reactive Plating > --- WEAPON ----------- (None) > --- INVENTORY -------- Experimental Sensor Array Splice Drone Bay Enhanced Autogun Enhanced Autogun [Rating: 35] Favorites ----------- Power Light Ion Engine Engine Light Ion Engine Propulsion Improved Carbon-fiber Leg Treads Medium Treads Leg Improved Carbon-fiber Leg Utility Medium Reactive Plating Device Seismic Detector Hackware Hacking Suite Protection Medium Reactive Plating Weapon Makeshift Hammer Ballistic Gun Enhanced Autogun Impact Weapon Makeshift Hammer Build | -11 -10 -10 -10 -9 -8 -8 -7 -7 -6 ------- Run | Yrd Mat Min Exi Min Mat Sto Fac DSF Fac Slots Evolved 8 | . . . . . 4 . 2 . 2 Power 1 | . . . . . 1 . . . . Propulsion 4 | . . . . . 2 . 2 . . Utility 3 | . . . . . 1 . . . 2 Weapon . | . . . . . . . . . . Parts Attached 21 | . . 1 . . 2 4 . 13 1 Power 1 | . . . . . . . . 1 . Engine 1 | . . . . . . . . 1 . Core . | . . . . . . . . . . Reactor . | . . . . . . . . . . Propulsion 7 | . . . . . . . . 6 1 Treads 1 | . . . . . . . . . 1 Leg 6 | . . . . . . . . 6 . Wheel . | . . . . . . . . . . Hover . | . . . . . . . . . . Flight . | . . . . . . . . . . Utility 11 | . . 1 . . 2 2 . 6 . Device 4 | . . 1 . . 1 2 . . . Storage . | . . . . . . . . . . Processor . | . . . . . . . . . . Hackware 3 | . . . . . . . . 3 . Protection 4 | . . . . . 1 . . 3 . Artifact . | . . . . . . . . . . Weapon 2 | . . . . . . 2 . . . Energy Gun . | . . . . . . . . . . Energy Cannon . | . . . . . . . . . . Ballistic Gun 1 | . . . . . . 1 . . . Ballistic Cannon . | . . . . . . . . . . Launcher . | . . . . . . . . . . Special Weapon . | . . . . . . . . . . Impact Weapon 1 | . . . . . . 1 . . . Slashing Weapon . | . . . . . . . . . . Piercing Weapon . | . . . . . . . . . . Special Melee Weapon . | . . . . . . . . . . Unidentified Prototypes 3 | . . . . . . 3 . . . Parts Lost 12 | . . . . 1 . . . 2 9 Power 1 | . . . . . . . . . 1 Propulsion 7 | . . . . . . . . 1 6 Utility 4 | . . . . 1 . . . 1 2 Weapon . | . . . . . . . . . . Highest Loss Streak 8 | . . . . 1 . . . 2 8 To Critical Strikes . | . . . . . . . . . . Average Backups 4 | 1 3 4 5 5 5 4 5 5 5 Power . | . 2 1 1 1 1 1 1 . . Propulsion . | . . . . . . . . . . Utility 2 | . 1 2 3 3 3 1 2 2 3 Weapon 1 | . . . 1 1 1 1 2 2 2 Tool/Special . | . . . . . . . . . . Unused Backups 5 | . . 1 . . . 2 . . 2 Power 1 | . . 1 . . . . . . . Propulsion . | . . . . . . . . . . Utility 2 | . . . . . . 1 . . 1 Weapon 2 | . . . . . . 1 . . 1 Tool/Special . | . . . . . . . . . . Average Slot Usage (%) 22 | . . 13 14 2 6 9 . 37 46 Engine 1 | . . . . . . . . 1 4 Leg 9 | . . . . . . . . 20 25 Device 4 | . . 13 14 2 6 2 . . . Hackware 1 | . . . . . . . . 11 . Protection 4 | . . . . . . . . 4 15 Peak Build Rating 35 | . . 3 3 3 8 18 2 35 35 Average Rating 12 | . . 2 3 2 4 5 2 20 27 On Entrance 5 | . . . 3 3 2 8 2 2 35 Naked Turns 292 | . 32 5 . 110 11 74 15 4 41 Heaviest Build 63 | . . 1 1 1 1 14 . 63 63 Greatest Support 90 | 3 3 3 3 3 3 3 3 90 90 Greatest Overweight (x) 4 | . . . . . . 4 . 2 1 Average Overweight (x) . | . . . . . . . . . . Largest Inventory Capacity 5 | 5 5 5 5 5 5 5 5 5 5 Average Capacity 5 | 5 5 5 5 5 5 5 5 5 5 Most Carried 5 | 3 3 5 5 5 5 5 5 5 5 Average Carried 4 | 1 3 4 5 5 5 4 5 4 5 Final Capacity 5 | 5 5 5 5 5 5 5 5 5 5 Final Carried 5 | 3 3 5 5 5 5 5 5 5 5 Class Distribution -------------------- 92% | Mutant 7% | Hacker-Mutant Dominant Class ---------------- Mutant | -10/Materials Mutant | -10/Mines Mutant | -10/Exiles Mutant | -9/Mines Mutant | -8/Materials Mutant | -8/Storage Mutant | -7/Factory Hacker-Mutant | -7/DSF Mutant | -6/Factory Resources | -11 -10 -10 -10 -9 -8 -8 -7 -7 -6 ----------- Run | Yrd Mat Min Exi Min Mat Sto Fac DSF Fac Matter Collected 265 | 200 . . . . . 55 . 10 . Remotely . | . . . . . . . . . . Salvage Created . | . . . . . . . . . . Parts . | . . . . . . . . . . Haulers Intercepted . | . . . . . . . . . . Recyclers Shooed . | . . . . . . . . . . Parts Field Recycled . | . . . . . . . . . . Retrieved Matter . | . . . . . . . . . . Parts Self-Destructed . | . . . . . . . . . . Prevented . | . . . . . . . . . . Kills | -11 -10 -10 -10 -9 -8 -8 -7 -7 -6 ------- Run | Yrd Mat Min Exi Min Mat Sto Fac DSF Fac Combat Hostiles Destroyed . | . . . . . . . . . . Classes Destroyed . | . . . . . . . . . . Best Kill Streak . | . . . . . . . . . . Combat Bots Only . | . . . . . . . . . . Max Kills in Single Turn . | . . . . . . . . . . Gunslinging . | . . . . . . . . . . Exploded . | . . . . . . . . . . Melee . | . . . . . . . . . . Uniques/NPCs Destroyed . | . . . . . . . . . . Combat | -11 -10 -10 -10 -9 -8 -8 -7 -7 -6 -------- Run | Yrd Mat Min Exi Min Mat Sto Fac DSF Fac Hostile Shots Fired 403 | . . . . 23 26 43 . 25 286 Missed 155 | . . . . 10 10 15 . 5 115 Hits 248 | . . . . 13 16 28 . 20 171 Projectile 248 | . . . . 13 16 28 . 20 171 Critical Strikes 5 | . . . . 1 1 . . 1 2 Damage Taken 3542 | . . . . 127 162 299 . 682 2272 Core 1735 | . . . . 113 140 299 . 324 859 Absorbed by Shields . | . . . . . . . . . . Ignored by Resistances 350 | . . . . . . . . . 350 Core Remaining (%) 56 | 100 . . . 54 . 20 . 53 . Volleys Fired . | . . . . . . . . . . Largest . | . . . . . . . . . . Hottest . | . . . . . . . . . . Shots Fired . | . . . . . . . . . . Gun . | . . . . . . . . . . Cannon . | . . . . . . . . . . Launcher . | . . . . . . . . . . Special . | . . . . . . . . . . Kinetic . | . . . . . . . . . . Thermal . | . . . . . . . . . . Explosive . | . . . . . . . . . . Electromagnetic . | . . . . . . . . . . Robot Hit Streak . | . . . . . . . . . . Robot Miss Streak . | . . . . . . . . . . Penetration Max . | . . . . . . . . . . Secondary Targets . | . . . . . . . . . . Shots Hit Robots . | . . . . . . . . . . Core Hits 1 | . . . . . . 1 . . . Critical Kills . | . . . . . . . . . . Critical Parts Destroyed . | . . . . . . . . . . Critical Strikes . | . . . . . . . . . . Melee Attacks . | . . . . . . . . . . Impact . | . . . . . . . . . . Slashing . | . . . . . . . . . . Piercing . | . . . . . . . . . . Sneak Attacks . | . . . . . . . . . . Combat Hostiles . | . . . . . . . . . . Follow-up Attacks . | . . . . . . . . . . Damage Inflicted 52 | . . . . 11 2 22 . 16 1 Guns . | . . . . . . . . . . Cannons . | . . . . . . . . . . Explosions . | . . . . . . . . . . Melee . | . . . . . . . . . . Ramming 52 | . . . . 11 2 22 . 16 1 Kinetic . | . . . . . . . . . . Thermal . | . . . . . . . . . . Explosive . | . . . . . . . . . . Electromagnetic . | . . . . . . . . . . Impact . | . . . . . . . . . . Slashing . | . . . . . . . . . . Piercing . | . . . . . . . . . . Highest Corruption 1 | . . . . 1 . 1 . . . Average Corruption 1 | . . . . 1 . 1 . . . Corruption Purged . | . . . . . . . . . . Corruption Blocked . | . . . . . . . . . . Effects 2 | . . . . 2 . . . . . Message Errors 1 | . . . . 1 . . . . . Matter Fused 1 | . . . . 1 . . . . . Overload Shots . | . . . . . . . . . . Overflow Damage . | . . . . . . . . . . Projectiles . | . . . . . . . . . . Explosions . | . . . . . . . . . . Melee . | . . . . . . . . . . Knockbacks . | . . . . . . . . . . Impact . | . . . . . . . . . . Kinetic . | . . . . . . . . . . Secondary . | . . . . . . . . . . Self-Inflicted Damage 17 | . . . . 5 1 11 . . . Shots . | . . . . . . . . . . Rammed 8 | . . . . 2 1 3 . . 2 Targets Rammed 10 | . . . . 2 1 3 . 2 2 Kicked 2 | . . . . . . . . 2 . Crushed . | . . . . . . . . . . Highest Temperature . | . . . . . . . . . . Average Temperature . | . . . . . . . . . . Received Heat Transfer 372 | . . . . 30 36 36 . 72 198 Siege Activations . | . . . . . . . . . . Martial Activations . | . . . . . . . . . . Shielding Activations . | . . . . . . . . . . Robots Disrupted . | . . . . . . . . . . Combat Hostiles . | . . . . . . . . . . Robots Corrupted . | . . . . . . . . . . Combat Hostiles . | . . . . . . . . . . Parts Fried . | . . . . . . . . . . Impact Corruptions . | . . . . . . . . . . Robots Melted . | . . . . . . . . . . Combat Hostiles . | . . . . . . . . . . Parts Melted . | . . . . . . . . . . Heat Transferred . | . . . . . . . . . . Parts Sabotaged . | . . . . . . . . . . Parts Stolen . | . . . . . . . . . . Parts Stripped . | . . . . . . . . . . Power Chain Reactions . | . . . . . . . . . . Alert | -11 -10 -10 -10 -9 -8 -8 -7 -7 -6 ------- Run | Yrd Mat Min Exi Min Mat Sto Fac DSF Fac Maximum Alert Level . | . . . . . . . . . . Low Security (%) 100 | 100 100 100 . 100 100 100 100 100 100 Level 1 . | . . . . . . . . . . Level 2 . | . . . . . . . . . . Level 3 . | . . . . . . . . . . Level 4 . | . . . . . . . . . . Level 5 . | . . . . . . . . . . High Security . | . . . . . . . . . . Max Security . | . . . . . . . . . . Peak Influence 160 | . . . . . . 20 6 19 160 Initial 7 | . . . . . . . 6 4 7 Average 4 | . . . . . . 4 6 9 9 Influence Increases 252 | . . . . . . 42 . 30 180 Successful Hack 12 | . . . . . . 12 . . . Lose Combat Pursuer 240 | . . . . . . 30 . 30 180 Influence Decreases 102 | . . . . . . 27 9 21 45 Entered New Map 19 | . . . . . . . 9 2 8 Time Decay 54 | . . . . . . 27 . . 27 Lost Part 29 | . . . . . . . . 19 10 Squads Dispatched 4 | . . . . . . 3 . . 1 Investigation 2 | . . . . . . 2 . . . Extermination 1 | . . . . . . . . . 1 Reinforcement 1 | . . . . . . 1 . . . Assault . | . . . . . . . . . . Garrison . | . . . . . . . . . . Intercept . | . . . . . . . . . . Searches Triggered . | . . . . . . . . . . Construction Impeded . | . . . . . . . . . . Haulers Reinforced . | . . . . . . . . . . Active Scanning Responses . | . . . . . . . . . . Cargo Convoy Interrupts . | . . . . . . . . . . Stealth | -11 -10 -10 -10 -9 -8 -8 -7 -7 -6 --------- Run | Yrd Mat Min Exi Min Mat Sto Fac DSF Fac Distress Signals 1 | . . . . . . . . . 1 Communications Jammed . | . . . . . . . . . . Distress Signals . | . . . . . . . . . . Times Spotted 58 | . 1 . . 12 4 11 . 5 25 Peak Tracking Total 13 | . 3 . . 7 4 12 . 3 13 Tactical Retreats 10 | . . . . 3 . 2 . 2 3 Traps | -11 -10 -10 -10 -9 -8 -8 -7 -7 -6 ------- Run | Yrd Mat Min Exi Min Mat Sto Fac DSF Fac Traps Triggered 3 | . . . . . . 2 . 1 . Indirectly . | . . . . . . . . . . Trap Hack Attempts . | . . . . . . . . . . Triggered . | . . . . . . . . . . Disarmed . | . . . . . . . . . . Reprogrammed . | . . . . . . . . . . Reused 2 | . . . . 2 . . . . . Traps Extracted . | . . . . . . . . . . Installed 2 | . . . . 2 . . . . . Triggered . | . . . . . . . . . . Machines | -11 -10 -10 -10 -9 -8 -8 -7 -7 -6 ---------- Run | Yrd Mat Min Exi Min Mat Sto Fac DSF Fac Machines Disabled . | . . . . . . . . . . Max in Single Turn . | . . . . . . . . . . Machines Repaired . | . . . . . . . . . . Machines Dismantled . | . . . . . . . . . . Machines Sabotaged . | . . . . . . . . . . Overloaded Fab Kills . | . . . . . . . . . . Hacking | -11 -10 -10 -10 -9 -8 -8 -7 -7 -6 --------- Run | Yrd Mat Min Exi Min Mat Sto Fac DSF Fac Machines Accessed 13 | . 1 1 4 . . 4 1 . 2 Terminals 7 | . 1 . . . . 4 1 . 1 Fabricators 1 | . . . . . . . . . 1 Repair Stations . | . . . . . . . . . . Recycling Units . | . . . . . . . . . . Scanalyzers . | . . . . . . . . . . Garrison Access . | . . . . . . . . . . Total Hacks 24 | . 4 1 4 . . 9 2 . 4 Successful 11 | . 2 1 4 . . 2 1 . 1 Failed 13 | . 2 . . . . 7 1 . 3 Catastrophic 2 | . . . . . . 1 . . 1 Database Lockouts . | . . . . . . . . . . Manual 9 | . 4 . 2 . . 2 . . 1 Terminals 16 | . 4 . . . . 9 2 . 1 Fabricators 3 | . . . . . . . . . 3 Repair Stations . | . . . . . . . . . . Recycling Units . | . . . . . . . . . . Scanalyzers . | . . . . . . . . . . Garrison Access . | . . . . . . . . . . Terminal Hacks 9 | . 1 1 4 . . 2 1 . . Record 4 | . . . 4 . . . . . . Open Door 2 | . . 1 . . . 1 . . . Open DSF 1 | . . . . . . . 1 . . Zone Layout 2 | . 1 . . . . 1 . . . Fabricator Hacks 1 | . . . . . . . . . 1 Network Status 1 | . . . . . . . . . 1 Repair Station Hacks . | . . . . . . . . . . Recycling Unit Hacks . | . . . . . . . . . . Scanalyzer . | . . . . . . . . . . Garrison Access Hacks . | . . . . . . . . . . Unauthorized Hacks 1 | . 1 . . . . . . . . Terminals 1 | . 1 . . . . . . . . Botnet 1 | . 1 . . . . . . . . Fabricators . | . . . . . . . . . . Repair Stations . | . . . . . . . . . . Recycling Units . | . . . . . . . . . . Scanalyzers . | . . . . . . . . . . Garrison Access . | . . . . . . . . . . Data Cores Recovered . | . . . . . . . . . . Used . | . . . . . . . . . . Hacking Detections 7 | . 1 . . . . 4 1 . 1 Full Trace Events 2 | . . . . . . 2 . . . Feedback Events 1 | . . . . . . 1 . . . Corruption 1 | . . . . . . 1 . . . Feedback Blocked . | . . . . . . . . . . Robot Schematics Acquired . | . . . . . . . . . . Robots Built . | . . . . . . . . . . Authchips . | . . . . . . . . . . Time . | . . . . . . . . . . Total Robot Build Rating . | . . . . . . . . . . Part Schematics Acquired . | . . . . . . . . . . Parts Built . | . . . . . . . . . . Authchips . | . . . . . . . . . . Time . | . . . . . . . . . . Total Part Build Rating . | . . . . . . . . . . Parts Repaired . | . . . . . . . . . . Time . | . . . . . . . . . . Parts Recycled . | . . . . . . . . . . Recycled Matter . | . . . . . . . . . . Retrieved Matter . | . . . . . . . . . . Retrieved Components . | . . . . . . . . . . Parts Scanalyzed . | . . . . . . . . . . Part Schematics Acquired . | . . . . . . . . . . Parts Damaged . | . . . . . . . . . . Bothacking | -11 -10 -10 -10 -9 -8 -8 -7 -7 -6 ------------ Run | Yrd Mat Min Exi Min Mat Sto Fac DSF Fac Used RIF Installer . | . . . . . . . . . . Robots Hacked . | . . . . . . . . . . Non-combat . | . . . . . . . . . . Combat . | . . . . . . . . . . Robot Hacks Applied . | . . . . . . . . . . Relay Couplers Released . | . . . . . . . . . . Fabnet Peak Effective % . | . . . . . . . . . . Robots Rewired . | . . . . . . . . . . Allies Hacked . | . . . . . . . . . . Hacks Repelled . | . . . . . . . . . . Allies | -11 -10 -10 -10 -9 -8 -8 -7 -7 -6 -------- Run | Yrd Mat Min Exi Min Mat Sto Fac DSF Fac Total Allies . | . . . . . . . . . . Largest Group . | . . . . . . . . . . Highest-Rated Group . | . . . . . . . . . . Highest-Rated Ally . | . . . . . . . . . . Total Orders 1 | . . . . . . 1 . . . EXPLORE 1 | . . . . . . 1 . . . Ally Attacks 5 | . . . . . . 5 . . . Total Damage 33 | . . . . . . 33 . . . Kills . | . . . . . . . . . . Allies Corrupted . | . . . . . . . . . . Allies Melted . | . . . . . . . . . . Intel | -11 -10 -10 -10 -9 -8 -8 -7 -7 -6 ------- Run | Yrd Mat Min Exi Min Mat Sto Fac DSF Fac Active Infowar (turns) 307 | . . 146 149 11 . 1 . . . Sensors 1 | . . . . . . 1 . . . Seismic 306 | . . 146 149 11 . . . . . Robot Analysis Total . | . . . . . . . . . . Derelict Logs Recovered 3 | . . 2 . 1 . . . . . Drone Launches 6 | . . . . . . 6 . . . Drone Recoveries 4 | . . . . . . 4 . . . Exploration | -11 -10 -10 -10 -9 -8 -8 -7 -7 -6 ------------- Run | Yrd Mat Min Exi Min Mat Sto Fac DSF Fac Turns Passed 1128 | 19 32 151 149 121 58 128 15 126 329 Spaces Moved 1642 | 33 63 286 299 231 108 174 29 108 311 Core 1365 | 33 63 286 299 231 108 174 29 63 79 Treads 8 | . . . . . . . . . 8 Legs 269 | . . . . . . . . 45 224 Wheels . | . . . . . . . . . . Hover . | . . . . . . . . . . Flight . | . . . . . . . . . . Fastest Speed 50 | 50 50 50 50 50 50 50 50 50 50 Average Speed 62 | 50 50 50 50 50 50 52 50 81 104 Slowest Speed 260 | 50 50 50 50 50 50 250 50 260 190 Overloaded Moves . | . . . . . . . . . . Propulsion Burnouts . | . . . . . . . . . . Robots Hopped . | . . . . . . . . . . Potential Cave-ins 2 | . . . . 2 . . . . . Cave-ins Triggered . | . . . . . . . . . . Exploration Rate (%) 42 | 3 25 70 70 65 14 62 1 95 15 Regions Visited 9 Branch Regions 4 Pre-discovered Areas 1 | . . . . 1 . . . . . Known Exits Taken 1 | . . . . . . . 1 . . Unknown Exits Taken 7 | 1 1 1 1 1 1 1 . . . Scrap Searched 1 | . . 1 . . . . . . . Spaces Dug . | . . . . . . . . . . Terrain Destroyed . | . . . . . . . . . . Melee . | . . . . . . . . . . Projectile . | . . . . . . . . . . AOE . | . . . . . . . . . . Terrain Rammed . | . . . . . . . . . . Walls Destroyed . | . . . . . . . . . . Machines Disabled . | . . . . . . . . . . Actions | -11 -10 -10 -10 -9 -8 -8 -7 -7 -6 --------- Run | Yrd Mat Min Exi Min Mat Sto Fac DSF Fac Total 1731 | 35 62 293 298 235 111 213 28 141 315 Wait 25 | . . 2 . 1 1 20 . 1 . Move 1635 | 32 62 285 298 230 108 173 28 108 311 Hop . | . . . . . . . . . . Pick Up 14 | 3 . 4 . . . 6 . 1 . Fast Attach 15 | . . . . . 2 . . 12 1 Attach 6 | . . 1 . . . 4 . 1 . Detach . | . . . . . . . . . . Swap . | . . . . . . . . . . Drop 11 | . . 1 . . . 7 . 2 1 Fire . | . . . . . . . . . . Melee . | . . . . . . . . . . Ram 5 | . . . . 2 . 3 . . . Kick 1 | . . . . . . . . 1 . Crush 2 | . . . . . . . . . 2 Escape Stasis 15 | . . . . . . . . 15 . Rewire . | . . . . . . . . . . Trap 2 | . . . . 2 . . . . . Miscellaneous . | . . . . . . . . . . Route ------- -11/Scrapyard -10/Materials -10/Mines (discovered 2 exits: *Exi / Sub) -10/Exiles -9/Mines -8/Materials -8/Storage -7/Factory -7/DSF -6/Factory History --------- Turn | Location | Event 12 | -11/Scrapyard | Discovered new exit (range 15) 20 | -11/Scrapyard | Entered Materials 37 | -10/Materials | Discovered new exit (range 15) 52 | -10/Materials | Entered Mines 66 | -10/Mines | Identified exit to Subcaves 69 | -10/Mines | Found a damaged Exp. Sensor Array with a note attached 70 | -10/Mines | Found Prototype Device 109 | -10/Mines | Learned Materials non-interactive machine intel 121 | -10/Mines | A weapon hastily lodged in a ceiling crevice suddenly fell to the ground 141 | -10/Mines | Found the Drone Emporium 143 | -10/Mines | Found Prototype Device 200 | -10/Mines | Deemed a non-threat by the Exiles lab entrance 201 | -10/Mines | Discovered new exit (range 5) 203 | -10/Mines | Entered Exiles 203 | -10/Exiles | Found Exiles lab abandoned 315 | -10/Exiles | Build established: Mutant 347 | -10/Exiles | Discovered new exit (range 12) 352 | -10/Exiles | Entered Mines 362 | -9/Mines | Assembled infested the area 366 | -9/Mines | Learned location of Zion (-6) 367 | -9/Mines | Assisted by a Guerilla fighting off Assembled 394 | -9/Mines | Found a hidden stash of uninstalled traps 425 | -9/Mines | Met a Derelict bent on vengeance 468 | -9/Mines | Discovered new exit (range 10) 473 | -9/Mines | Entered Materials 473 | -8/Materials | Evolved 4 slots: Power x1, Propulsion x2, Utility x1 474 | -8/Materials | Loaded intel: 36 non-interactive machine locations 523 | -8/Materials | Discovered new exit (range 15) 531 | -8/Materials | Entered Storage 542 | -8/Storage | Identified Exp. Sensor Array 543 | -8/Storage | Identified Splice Drone Bay 635 | -8/Storage | Core integrity fell below 50% 652 | -8/Storage | Discovered new exit (range 15) 659 | -8/Storage | Entered Factory 659 | -7/Factory | Evolved 2 slots: Propulsion x2 674 | -7/Factory | Identified exit to DSF 674 | -7/Factory | Entered DSF 700 | -7/DSF | Additional patrols routed to DSF 746 | -7/DSF | Discovered new exit (range 14) 800 | -7/DSF | Entered Factory 800 | -6/Factory | Evolved 2 slots: Utility x2 1103 | -6/Factory | Lost 8 parts (1p5n2u) 1103 | -6/Factory | Core integrity fell below 50% 1113 | -6/Factory | Core integrity fell below 20% 1129 | -6/Factory | Destroyed by S-27 Virus with Autogun Last Messages --------------- 01050_ Med. Reactive Plating destroyed. 01050_ Dropped Med. Reactive Plating. 01051_ ALERT: Potential suspicious activity detected, Programmers report to Factory Zone 8M. 01055_ Med. Reactive Plating destroyed. 01059_ M-28 Smith repairs S-27 Virus. 01060_ S-27 Virus suffers critical hit (Burn). 01065_ R-10 Processor collects Med. Reactive Plating. 01065_ Imp. Carbon-fiber Leg destroyed. 01068_ M-28 Smith repairs S-27 Virus VTOL Module. 01069_ Critical hit (Burn: +37). 01070_ Connecting with Terminal... 01072_ Imp. Carbon-fiber Leg destroyed. 01112_ Acquired Med. Treads. 01113_ S-27 Virus destroyed. 01126_ Slammed into S-27 Virus. 01128_ Med. Treads destroyed. Map ----- +----------------------------------------------------+ | | | | | | | | | | | | | | | | | | | | | | | | | | | | | | | | | ?????????????????????????????????????????????????? | | ?????????????????????????????????????????????????? | | ?????????????????????????????????????????????????? | | ?????????????????????????????????????????????????? | | ???????????????????????#####?????????????????????? | | ???????????????????????# #?????????????????????? | | ???????????????????????? " ??????????????????????? | | ???????????????????????? ??????????????????????? | | ????????????????????????#s#??????????????????????? | | ????????????????????????#@#??????????????????????? | | ????????????????????????#s#??????????????????????? | | ????????????????????????#s#??????????????????????? | | ????????????????????????# #??????????????????????? | | ??????????????????????###s##########?????????????? | | ??????????????????????# #?????????????? | | ??????????????????????# #?????????????? | | ??????????????????????# #?????????????? | | ??????????????????????# #?????????????? | | ??????????????????????# s !#?????????????? | | ??????????????????????# #?????????????? | | ??????????????????????# s #?????????????? | | ??????????????????????# s #?????????????? | | ??????????????????????# ! #?????????????? | | ??????????????????????# #?????????????? | | ??????????????????????# [ #?????????????? | | ??????????????????????# *%= #?????????????? | | ############+################/######?????????????? | | #??????????????? | | #??????????????? | | """""" """""" #??????????????? | | """""" """""" #??????????????? | | """""" """""" #??????????????? | | """""" """""" #??????????????? | | #??????????????? | +----------------------------------------------------+ Best States ------------- Heat Dissipation 45 Energy Generation 10 Energy Capacity 125 Matter Stores 300 Matter Capacity 300 Sight Range 16 Terrain Scan Density 10 Armor Coverage 675 Resistance: KI 30 Evasion (%) 55 Recoil Reduction 1 Offensive Hacking 30 Item Schematics ----------------- None Robot Schematics ------------------ None Fabricated ------------ Nothing Repaired ---------- Nothing Alien Tech Used ----------------- None Achievements -------------- None Challenges ------------ None Game ------ Seed AssaultPartitionWarhead Manual? 0 Play Time 00:20:00 Cumulative 97.3 hours Start 2025.08.05 @ 02:53:07 End 2025.08.05 @ 03:10:02 Sessions 1 Manual Loads 0 Difficulty Rogue Special Mode None Game No. 173 Rogue 173 Adventurer 0 Explorer 0 Win Type - Total 1 Types 1/0/0/0/0/0/0/0/0/0 Lore% 63 Gallery% 58 Achievement% 43 Wizard Run 0 Options --------- Layout 1 ASCII 0 Keyboard 0 Movement Numpad Keybinds 0 Fullscreen 1 Font 24/Smallcaps Map View 50x35 Zoom Use 0% Tactical HUD 1 Map Filters NONE Filters NONE Steam 1 RUN: b37fc9de-6c6d-46ba-b370-816c1d23a5d1